bitfinex/quotes_ETHUSD_20250905
["timestamp","ask_amount","ask_price","bid_price","bid_amount"]
[1757084587888,8.29016123,4262.1,4262.0,0.5]
[1757084588108,9.52649619,4262.1,4262.0,0.5]
[1757084588396,1.727,4262.3,4262.0,0.5]
[1757084588755,1.727,4263.3,4262.1,0.4632]
[1757084589176,0.025,4263.8,4262.2,0.02346206]
[1757084589385,0.025,4263.8,4262.3,0.89052621]
[1757084589572,1.0714,4263.7,4262.0,0.5]
[1757084589758,2.3456082,4263.3,4262.0,0.5]
[1757084589968,1.727,4263.3,4262.1,2.36972384]
[1757084590168,1.727,4263.3,4262.0,0.5]
[1757084590371,0.025,4263.8,4262.2,2.34620618]
[1757084590605,0.025,4263.8,4263.7,2.34538077]
[1757084591000,0.025,4263.8,4263.7,2.78188077]
[1757084591202,0.025,4263.8,4262.6,3.0]
[1757084591403,0.025,4263.8,4262.5,0.4365]
[1757084591769,0.025,4263.8,4263.7,2.34538077]
[1757084591972,0.025,4263.8,4263.7,2.57991885]
[1757084592810,1e-08,4263.8,4263.7,3.59347265]
[1757084593011,1e-08,4263.8,4263.7,0.23453808]
[1757084593209,1e-08,4263.8,4263.7,2.34538077]
[1757084593410,1e-08,4263.8,4262.7,2.89952955]
[1757084593411,1e-08,4263.8,4262.4,0.4365]
[1757084593609,1e-08,4263.8,4263.7,0.70472247]
[1757084593997,1e-08,4263.8,4262.5,2.34600175]
[1757084593998,1.53540001,4263.8,4262.5,2.34600175]
[1757084594186,1e-08,4263.8,4262.0,0.95996316]
[1757084594521,1e-08,4263.8,4263.5,0.70472247]
[1757084595401,1e-08,4263.8,4263.7,2.34538077]
[1757084595601,1e-08,4263.8,4263.7,2.99658301]
[1757084595908,1e-08,4263.8,4263.7,4.08958301]
[1757084596111,0.025,4264.8,4263.7,1.76765604]
[1757084596311,0.025,4264.8,4264.7,2.34483082]
[1757084596514,0.025,4264.8,4263.9,2.34527076]
[1757084596722,0.025,4264.8,4263.5,0.70472247]
[1757084596925,1.0714,4264.7,4263.5,0.70472247]
[1757084597094,0.025,4264.8,4264.0,2.34521575]
[1757084597291,0.025,4264.8,4263.5,0.70472247]
[1757084597292,2.36981962,4264.8,4263.5,0.70472247]
[1757084597511,0.025,4264.8,4263.5,0.70472247]
[1757084597676,0.1168,4264.0,4263.6,2.34543578]
[1757084597889,0.1168,4264.7,4264.0,0.1168]
[1757084598434,0.1168,4264.4,4263.7,0.1168]
[1757084598718,0.026,4264.8,4263.6,14.5]
[1757084598923,0.026,4264.8,4264.5,2.34490068]
[1757084599086,0.026,4264.8,4264.6,2.57936211]
[1757084599394,0.001,4265.3,4264.7,2.36827912]
[1757084599592,0.001,4265.3,4265.2,2.34455594]
[1757084600209,0.001,4265.3,4264.7,0.4365]
[1757084600427,0.001,4265.3,4264.5,2.34493299]
[1757084600600,0.001,4265.3,4264.2,2.34510576]
[1757084600910,0.001,4265.3,4264.8,14.5]
[1757084601334,0.001,4265.3,4264.3,0.28050574]
[1757084601499,0.001,4265.3,4263.7,3.0]
[1757084601500,2.34460545,4265.2,4264.0,2.34521362]
[1757084601836,2.34550404,4265.3,4264.1,2.34515786]
[1757084602001,0.001,4265.3,4263.7,14.5]
[1757084602328,0.001,4265.3,4264.7,2.34482232]
[1757084602532,0.001,4265.3,4263.9,2.34527076]
[1757084602533,0.001,4265.3,4263.7,14.5]
[1757084602710,0.61864,4265.3,4263.8,0.025]
[1757084602909,0.465,4265.3,4263.8,0.025]
[1757084603434,2.34459506,4265.2,4264.0,2.34517826]
[1757084603610,0.001,4265.3,4263.8,0.025]
[1757084603812,1.5354,4265.2,4263.8,0.025]
[1757084603998,0.59846,4265.1,4263.8,0.025]
[1757084604199,2.34512758,4264.2,4263.8,0.025]
[1757084604404,4.45,4264.4,4263.8,0.025]
[1757084604736,6.176,4264.5,4263.8,0.025]
[1757084605030,6.79404028,4264.4,4263.8,0.025]
[1757084605329,4.449,4264.4,4263.8,0.025]
[1757084605531,2.34510576,4264.2,4263.8,0.025]
[1757084605698,1.5354,4264.3,4263.8,0.025]
[1757084605896,4.445,4264.4,4263.8,0.025]
[1757084606102,0.464,4264.8,4263.8,0.025]
[1757084606333,4.91,4265.0,4263.8,0.025]
[1757084606544,5.17046366,4264.9,4263.9,2.34527076]
[1757084606836,4.452,4265.0,4263.8,0.025]
[1757084607424,5.5284,4265.1,4263.8,0.025]
[1757084607633,4.457,4265.2,4264.5,2.34491806]
[1757084607955,4.457,4265.2,4264.4,2.3449509]
[1757084608141,4.457,4265.2,4264.5,2.34493631]
[1757084608317,1.0934,4265.8,4263.9,5.34527076]
[1757084608520,1.75,4265.8,4264.0,0.60412923]
[1757084608717,1.75,4265.8,4264.0,3.60412923]
[1757084608940,0.1168,4265.7,4265.2,2.34455594]
[1757084609143,0.022,4265.8,4265.2,2.34455594]
[1757084609348,0.022,4265.8,4265.2,2.46135594]
[1757084609731,0.022,4265.8,4265.2,6.56590149]
[1757084609937,0.022,4265.8,4265.2,8.92716391]
[1757084610251,0.022,4265.8,4265.2,23.42716391]
[1757084610563,0.022,4265.8,4265.2,23.41398417]
[1757084610863,0.022,4266.8,4266.7,2.34373168]
[1757084611156,0.022,4266.8,4266.7,2.36716899]
[1757084611460,0.022,4266.8,4266.7,2.81482866]
[1757084611631,0.022,4266.8,4266.7,2.78023168]
[1757084611951,0.022,4266.8,4266.7,3.44826899]
[1757084612153,0.022,4266.8,4266.7,6.44826899]
[1757084612358,1e-08,4266.8,4266.7,21.71683168]
[1757084612654,1e-08,4266.8,4266.7,23.98473965]
[1757084612856,1e-08,4267.8,4267.7,2.34318251]
[1757084613158,0.025,4268.8,4268.7,2.34263358]
[1757084613319,1e-08,4268.8,4268.7,9.81405991]
[1757084613521,1e-08,4268.8,4266.6,0.6446]
[1757084613765,1e-08,4268.8,4267.7,0.09390806]
[1757084613766,1.5354,4268.7,4267.7,0.09390806]
[1757084613928,3.0,4268.5,4267.7,0.09390806]
[1757084614122,4.488,4268.4,4267.7,0.09390806]
[1757084614325,4.488,4268.3,4267.7,0.09390806]
[1757084614619,1.5354,4268.4,4266.2,2.7915]
[1757084614620,1.5354,4268.4,4267.0,14.5]
[1757084614823,0.15354,4268.3,4267.0,14.5]
[1757084615057,1e-08,4268.8,4267.2,2.34345706]
[1757084615256,1e-08,4268.8,4267.0,14.5]
[1757084615540,1e-08,4268.8,4267.8,2.34310495]
[1757084615738,1e-08,4268.8,4268.0,2.34300652]
[1757084615958,1e-08,4268.8,4267.1,3.0]
[1757084616158,1e-08,4268.8,4267.2,2.07821681]
[1757084616368,1e-08,4268.8,4267.3,4.48]
[1757084616551,1e-08,4268.8,4267.2,2.05478224]
[1757084616763,1e-08,4268.8,4267.2,2.07821681]
[1757084616945,1e-08,4268.8,4268.1,2.34293162]
[1757084617150,1e-08,4268.8,4267.2,2.05478224]
[1757084617467,1e-08,4268.8,4268.6,2.34268126]
[1757084617635,1e-08,4268.8,4267.4,2.34334723]
[1757084617842,0.464,4268.7,4267.3,5.26790797]
[1757084618042,1e-08,4268.8,4267.4,3.0]
[1757084618342,1e-08,4268.8,4268.7,2.34263358]
[1757084619044,1.752,4269.8,4269.7,2.34208492]
[1757084619045,0.025,4269.8,4269.7,2.34208492]
[1757084619341,1e-08,4270.8,4270.7,2.34153651]
[1757084619548,0.025,4271.8,4271.7,2.34098836]
[1757084619741,0.025,4271.8,4270.7,14.5]
[1757084619939,1.6171,4271.8,4270.7,14.5]
[1757084620148,1.6171,4271.8,4271.7,3.04447637]
[1757084620149,0.025,4271.8,4271.7,3.04447637]
[1757084620350,0.025,4271.8,4271.7,0.70348801]
[1757084620945,0.025,4271.8,4271.7,3.04447637]
[1757084621147,0.025,4271.8,4271.7,3.06788625]
[1757084621358,0.025,4271.8,4271.7,3.16127637]
[1757084621763,0.025,4271.8,4271.7,0.70348801]
[1757084621961,1.6171,4271.8,4271.7,0.70348801]
[1757084622162,0.1418,4271.8,4271.7,0.70348801]
[1757084622456,1.7339,4271.8,4271.7,0.70348801]
[1757084622683,0.025,4271.8,4271.7,0.70348801]
[1757084622993,0.025,4271.8,4270.9,2.34141235]
[1757084622994,0.463,4271.8,4270.9,2.34141235]
[1757084623161,0.463,4271.8,4270.7,14.5]
[1757084623162,1.6171,4271.8,4270.7,14.5]
[1757084623359,1.1791,4271.8,4271.2,0.70368107]
[1757084623582,0.438,4271.7,4270.1,2.34185716]
[1757084623758,2.34109797,4271.5,4269.4,3.464]
[1757084623958,1.75381,4271.6,4269.5,14.5]
[1757084623959,2.34120759,4271.3,4269.5,14.5]
[1757084624265,6.0861,4271.2,4270.1,0.70383626]
[1757084624448,4.496,4271.1,4270.1,0.70383626]
[1757084624650,4.934,4271.1,4270.1,0.70383626]
[1757084624853,2.34152105,4270.8,4270.1,0.70383626]
[1757084625179,2.95018631,4271.0,4267.6,0.6444]
[1757084625180,3.792,4270.9,4267.6,0.6444]
[1757084625475,0.792,4270.6,4269.3,0.70404273]
[1757084625699,0.792,4270.6,4267.9,3.02343072]
[1757084625700,2.34224949,4269.4,4268.8,0.025]
[1757084625897,1.5921,4269.5,4268.8,0.025]
[1757084626084,0.438,4269.3,4268.8,0.025]
[1757084626568,1.5921,4269.2,4268.8,0.025]
[1757084626769,1.726,4269.7,4268.8,0.025]
[1757084626952,6.216,4269.7,4268.8,0.025]
[1757084627149,2.34221038,4269.5,4268.8,0.025]
[1757084627380,6.216,4269.7,4268.8,0.025]
[1757084627559,1.726,4269.7,4268.8,0.025]
[1757084627758,0.438,4270.4,4268.8,0.26177301]
[1757084627969,1.1541,4270.6,4269.6,2.34209462]
[1757084628467,0.438,4270.5,4268.8,0.025]
[1757084628777,1.1541,4270.4,4268.8,0.025]
[1757084628977,0.438,4270.3,4268.8,0.025]
[1757084629178,2.34203419,4269.8,4268.8,0.025]
[1757084629383,1.5921,4270.5,4268.9,2.34252383]
[1757084629551,6.0741,4270.5,4269.5,2.34215776]
[1757084629757,1.5921,4270.5,4269.7,2.34204591]
[1757084629983,1.5921,4270.5,4269.0,0.23675238]
[1757084630400,1.5921,4270.5,4269.7,0.70387919]
[1757084630599,0.60881,4271.0,4269.7,0.70387919]
[1757084630600,1.75381,4271.6,4269.7,0.70387919]
[1757084630806,1.5921,4271.6,4269.8,0.0234203]
[1757084631117,1.5921,4271.6,4269.9,2.34197522]
[1757084631280,0.025,4271.8,4270.2,5.34177708]
[1757084631464,0.025,4271.8,4270.5,2.34161547]
[1757084631670,0.0242,4271.8,4270.8,2.3414676]
[1757084631902,0.438,4271.7,4270.7,2.34152273]
[1757084632107,2.34104316,4271.6,4269.5,2.34218023]
[1757084632308,1.5921,4271.6,4269.4,3.0]
[1757084632518,2.34120199,4271.4,4269.4,3.0]
[1757084632815,0.1168,4270.6,4269.9,0.1168]
[1757084633029,0.1168,4270.4,4269.7,0.82067919]
[1757084633311,0.1168,4270.7,4270.0,0.1168]
[1757084633490,0.1168,4270.7,4270.0,2.4586817]
[1757084633698,0.1168,4270.7,4270.2,2.34178707]
[1757084633869,0.1168,4270.7,4270.0,0.1168]
[1757084634065,0.438,4270.6,4270.0,0.1168]
[1757084634498,0.1168,4270.7,4270.0,2.4587192]
[1757084634700,0.1168,4270.7,4270.0,0.1168]
[1757084634913,0.001,4270.8,4270.2,0.1168]
[1757084635270,0.001,4270.8,4269.7,0.70387919]
[1757084635271,0.438,4270.7,4269.7,3.04591881]
[1757084635470,0.438,4270.7,4269.8,0.1168]
[1757084635471,0.1168,4270.5,4269.8,0.1168]
[1757084636488,0.1168,4270.5,4269.8,2.45882006]
[1757084636688,0.1168,4270.5,4270.2,2.34177064]
[1757084637002,0.1168,4270.5,4270.4,2.34170101]
[1757084637305,0.1168,4270.5,4269.8,2.45882286]
[1757084637476,0.1168,4270.5,4270.2,2.34177531]
[1757084637672,0.1168,4270.5,4270.3,2.34173761]
[1757084638007,0.1168,4270.5,4269.8,0.1168]
[1757084638207,0.1168,4270.5,4269.8,2.4588082]
[1757084638415,0.1168,4270.5,4270.3,2.34173737]
[1757084638573,0.1168,4270.5,4270.4,2.34170101]
[1757084638780,0.001,4270.8,4269.7,0.70387919]
[1757084639000,0.56171,4270.8,4269.7,0.70387919]
[1757084639170,0.56171,4270.8,4269.8,2.3419928]
[1757084639376,0.56171,4270.8,4269.7,0.70387919]
[1757084639594,0.001,4270.8,4270.2,2.34178026]
[1757084639878,0.001,4270.8,4269.7,0.72730003]
[1757084640080,0.001,4270.8,4270.4,2.34169816]
[1757084640274,0.001,4270.8,4269.7,0.70387919]
[1757084640489,0.001,4270.8,4270.7,2.34153651]
[1757084640888,0.001,4270.8,4270.7,2.83326568]
[1757084641090,0.001,4270.8,4270.7,11.33905032]
[1757084641580,0.001,4270.8,4270.7,10.69465032]
[1757084641787,0.001,4270.8,4270.7,2.34153651]
[1757084642508,0.001,4270.8,4270.7,2.80475187]
[1757084642719,0.001,4270.8,4270.7,2.34153651]
[1757084642878,0.001,4270.8,4269.1,2.34237943]
[1757084643082,0.001,4270.8,4270.7,2.34153651]
[1757084643483,0.001,4270.8,4269.7,5.14787919]
[1757084643793,0.001,4270.8,4270.5,2.34161497]
[1757084643990,0.001,4270.8,4270.4,2.34168458]
[1757084644287,0.001,4270.8,4269.8,5.15228792]
[1757084644596,0.001,4270.8,4269.9,2.34197522]
[1757084644804,0.001,4270.8,4269.9,2.34196011]
[1757084644982,0.001,4270.8,4269.8,0.025]
[1757084645191,0.439,4270.8,4269.8,0.025]
[1757084645521,5.5901,4270.7,4269.8,0.025]
[1757084645723,3.438,4270.6,4269.8,0.025]
[1757084646018,2.34192867,4270.0,4268.3,0.004]
[1757084646217,2.34236363,4269.2,4269.0,0.70387919]
[1757084646405,1.5921,4269.1,4268.3,0.004]
[1757084646608,1.725,4269.6,4268.9,2.34248265]
[1757084646823,4.435,4270.4,4269.0,0.23714827]
[1757084647021,4.435,4270.4,4268.8,0.73287919]
[1757084647022,2.34218027,4269.6,4268.8,0.73287919]
[1757084647334,4.436,4270.1,4268.8,0.73287919]
[1757084648117,2.34196572,4270.0,4268.8,0.73287919]
[1757084648419,4.436,4270.2,4268.8,0.73287919]
[1757084648594,4.435,4270.2,4268.8,0.73287919]
[1757084648819,0.1168,4269.7,4269.0,0.1168]
[1757084649000,0.438,4269.6,4268.8,0.73287919]
[1757084649203,0.438,4269.6,4268.8,3.07544214]
[1757084649521,0.438,4269.6,4268.8,0.73287919]
[1757084649720,0.1168,4269.4,4268.8,0.73287919]
[1757084649905,0.17251269,4270.8,4269.1,0.1168]
[1757084649906,0.1168,4269.8,4269.1,0.1168]
[1757084650107,0.4621,4269.7,4268.8,0.73287919]
[1757084650308,0.6894778,4269.8,4268.8,0.73287919]
[1757084650309,1.593,4269.6,4268.8,0.029]
[1757084650513,2.34244903,4269.1,4268.8,0.029]
[1757084650701,6.77748788,4269.0,4268.8,0.029]
[1757084650904,6.028,4269.0,4268.8,0.029]
[1757084651222,3.93552383,4268.9,4268.8,0.029]
[1757084651523,5.00681728,4268.9,4268.8,0.029]
[1757084651892,12.43881728,4268.9,4268.8,0.029]
[1757084652610,8.00681728,4268.9,4268.8,0.029]
[1757084652816,13.22781728,4268.9,4268.8,1e-08]
[1757084653198,3.13479823,4268.4,4268.3,1e-08]
[1757084653400,6.68255114,4268.4,4268.3,1e-08]
[1757084653720,6.68255114,4268.4,4267.8,1e-08]
[1757084653721,8.27555114,4268.4,4267.8,1e-08]
[1757084653930,3.1350727,4267.9,4267.8,1e-08]
[1757084654088,12.2880727,4267.9,4267.8,1e-08]
[1757084654292,13.8810727,4267.9,4267.8,1e-08]
[1757084654519,14.34223338,4267.9,4267.8,1e-08]
[1757084655534,9.91523338,4267.9,4267.8,1e-08]
[1757084655737,14.51583427,4267.9,4267.8,1e-08]
[1757084656097,10.09483427,4267.9,4267.8,1e-08]
[1757084656494,13.26267359,4267.9,4267.8,1e-08]
[1757084656696,1.726,4267.9,4267.8,1e-08]
[1757084656893,6.146,4267.9,4267.8,1e-08]
[1757084657094,1.726,4267.9,4267.8,1e-08]
[1757084657510,4.419,4268.6,4267.8,0.43980001]
[1757084657695,1.726,4269.0,4267.8,0.43980001]
[1757084657896,4.419,4268.9,4268.0,2.34300522]
[1757084658233,1.726,4269.0,4268.3,2.34284786]
[1757084658434,4.418,4268.8,4267.9,2.3430382]
[1757084658598,4.418,4268.8,4267.8,2.94109359]
[1757084658800,4.418,4268.8,4267.8,0.5980133]
[1757084658996,2.8569,4270.0,4267.9,1.1189]
[1757084659296,2.8569,4270.0,4268.0,0.1511415]
[1757084659609,4.413,4269.7,4269.0,2.3424493]
[1757084659798,4.413,4269.6,4268.9,2.34250408]
[1757084660001,4.413,4269.6,4268.1,1.5587]
[1757084660002,4.411,4269.6,4268.2,0.02342908]
[1757084660307,4.5278,4269.6,4268.9,0.1168]
[1757084660743,4.5268,4269.6,4268.9,0.1168]
[1757084660909,4.5268,4269.6,4267.9,0.70405264]
[1757084660910,2.3423557,4269.3,4267.9,0.70405264]
[1757084661114,2.34262016,4268.8,4268.2,0.1168]
[1757084661338,4.408,4268.7,4268.2,0.1168]
[1757084661497,4.408,4268.7,4267.6,0.70413196]
[1757084661697,0.1168,4268.2,4266.9,0.4398]
[1757084661930,6.7490097,4268.1,4267.0,2.34354708]
[1757084662245,6.74896653,4268.1,4266.9,0.70425429]
[1757084662533,1.726,4268.8,4267.0,0.46323566]
[1757084662731,4.406,4268.8,4267.9,0.4398]
[1757084662932,2.34235973,4269.2,4268.0,2.7355457]
[1757084663135,2.34226209,4269.4,4268.2,2.34289964]
[1757084663300,2.34226209,4269.4,4268.0,0.39253044]
[1757084663301,4.404,4269.5,4268.1,0.4398]
[1757084663502,4.404,4269.5,4268.2,1.14232908]
[1757084663917,4.404,4269.5,4268.3,0.4398]
[1757084664111,1.726,4269.7,4269.3,2.3422596]
[1757084664305,0.0242,4269.8,4268.8,2.34257871]
[1757084664505,0.0242,4269.8,4268.7,1.14232633]
[1757084664802,0.0242,4269.8,4269.7,2.34208492]
[1757084665036,0.0242,4269.8,4269.7,2.36550576]
[1757084665250,0.0242,4269.8,4269.7,4.39497224]
[1757084665554,0.0242,4269.8,4269.7,5.02946648]
[1757084665740,0.0242,4269.8,4269.7,7.3715514]
[1757084666546,0.0242,4269.8,4269.7,8.1635514]
[1757084667319,0.0242,4269.8,4269.7,1.58966648]
[1757084667533,0.0242,4269.8,4269.1,0.4398]
[1757084667745,0.0242,4269.8,4269.7,2.34208492]
[1757084668241,0.0242,4269.8,4269.7,3.90078492]
[1757084668424,0.0242,4269.8,4269.7,6.90078492]
[1757084668850,0.0242,4269.8,4269.7,6.46098492]
[1757084669050,0.0242,4269.8,4269.7,6.66200263]
[1757084669458,0.0195138,4269.8,4269.7,8.22070263]
[1757084669839,0.0195138,4269.8,4269.7,9.01270263]
[1757084670161,0.001,4270.8,4270.7,2.34153651]
[1757084671430,0.001,4270.8,4270.4,4.391]
[1757084671633,0.001,4270.8,4270.7,2.34153651]
[1757084671966,0.001,4270.8,4270.7,0.1168]
[1757084672872,0.4631,4270.8,4268.9,0.70389571]
[1757084673062,0.001,4270.3,4270.1,0.1168]
[1757084673667,0.4631,4270.3,4270.1,0.1168]
[1757084674071,0.4631,4270.3,4269.3,2.34230435]
[1757084674244,0.4631,4270.3,4269.8,0.1168]
[1757084674571,0.4631,4270.3,4269.0,1.726]
[1757084674572,0.001,4270.3,4269.7,2.34203046]
[1757084674770,0.001,4270.3,4269.6,0.1168]
[1757084674971,2.34279364,4270.3,4269.2,2.34233346]
[1757084675182,0.001,4270.3,4269.3,2.34225292]
[1757084675389,0.001,4270.3,4269.7,2.34208147]
[1757084675586,0.001,4270.3,4269.4,2.34224949]
[1757084675587,0.001,4270.3,4269.6,2.34210536]
[1757084675791,0.001,4270.3,4269.3,0.23422529]
[1757084675792,0.001,4270.3,4269.7,0.02342084]
[1757084675990,0.001,4270.3,4270.2,2.34181068]
[1757084676158,0.001,4270.3,4270.2,6.73181068]
[1757084676357,0.001,4270.3,4270.2,3.2491794]
[1757084676757,0.001,4270.3,4270.2,3.7123975]
[1757084677192,0.001,4270.3,4270.2,4.8312975]
[1757084677351,0.001,4270.3,4270.2,8.5998794]
[1757084677552,0.001,4271.3,4270.7,3.13353651]
[1757084677785,0.001,4271.3,4271.2,3.1332624]
[1757084677982,0.001,4271.3,4271.2,6.15667502]
[1757084678155,0.001,4271.3,4271.2,7.6909624]
[1757084678589,0.001,4272.7,4272.2,2.34071438]
[1757084678773,0.001,4272.7,4272.2,9.27112152]
[1757084678978,1e-08,4273.8,4273.7,3.13189283]
[1757084679198,1e-08,4273.8,4273.7,9.24689283]
[1757084679378,1e-08,4273.8,4273.7,9.34249283]
[1757084679587,1e-08,4273.8,4273.7,13.83521804]
[1757084680270,0.001,4274.3,4273.7,13.83521804]
[1757084680271,0.001,4274.7,4274.3,3.792]
[1757084680471,0.001,4274.7,4274.6,3.13140017]
[1757084680708,5.02164883,4277.1,4276.7,2.33825145]
[1757084680866,5.02164883,4277.1,4276.7,11.46125145]
[1757084681068,1.725,4279.5,4276.7,7.06325145]
[1757084681380,1.0842,4278.1,4276.7,11.46325145]
[1757084681583,0.4992,4278.8,4276.7,15.12100966]
[1757084681776,1e-08,4276.8,4276.7,15.12100966]
[1757084682675,1e-08,4276.8,4276.7,15.29679644]
[1757084682874,1e-08,4277.8,4277.7,2.33770484]
[1757084683103,1e-08,4277.8,4277.7,10.55608188]
[1757084683290,1e-08,4277.8,4277.7,13.60769142]
[1757084683674,1e-08,4277.8,4277.7,7.71909142]
[1757084684003,1e-08,4277.8,4277.7,9.73970484]
[1757084684203,1e-08,4277.8,4277.7,10.53170484]
[1757084684506,1e-08,4277.8,4277.7,12.01730484]
[1757084685078,1e-08,4277.8,4277.7,7.61530484]
[1757084685300,1e-08,4277.8,4277.7,6.12970484]
[1757084685515,1e-08,4277.8,4277.7,11.37745368]
[1757084685713,1e-08,4277.8,4277.7,12.86305368]
[1757084686077,1e-08,4277.8,4277.7,11.37745368]
[1757084686314,1e-08,4277.8,4277.7,6.97645368]
[1757084686606,1e-08,4277.8,4277.7,6.12970484]
[1757084686782,1e-08,4277.8,4277.7,10.52670484]
[1757084687110,1e-08,4277.8,4277.7,5.33770484]
[1757084687282,1e-08,4277.8,4277.7,9.73370484]
[1757084687482,0.02420001,4278.8,4277.8,3.0]
[1757084687680,0.02420001,4278.8,4277.7,0.4742]
[1757084688009,0.02420001,4278.8,4278.0,2.33753263]
[1757084688208,0.02420001,4278.8,4278.1,4.391]
[1757084688423,0.4742,4278.7,4278.1,4.391]
[1757084688737,0.4742,4278.7,4277.7,0.4742]
[1757084688738,1.0842,4278.6,4278.2,4.388]
[1757084689026,1.5584,4278.5,4278.2,4.388]
[1757084689207,0.02420001,4278.8,4278.2,4.388]
[1757084689208,0.02420001,4278.8,4278.4,2.33728236]
[1757084689527,1.5584,4278.7,4277.9,4.384]
[1757084689729,2.33730661,4278.5,4277.8,4.384]
[1757084689890,3.89573952,4278.4,4277.4,0.70250454]
[1757084690089,0.4742,4278.3,4277.3,4.384]
[1757084690285,1.5584,4278.2,4276.9,4.384]
[1757084690478,1.5584,4278.1,4277.0,2.36146831]
[1757084690706,0.4742,4278.0,4276.7,2.42762795]
[1757084690910,2.33770093,4277.8,4276.6,2.33830613]
[1757084691090,0.4742,4277.7,4276.7,2.33825145]
[1757084691293,0.4742,4277.7,4276.6,0.02338306]
[1757084691691,0.4742,4277.7,4276.8,0.025]
[1757084691902,1.0842,4277.9,4277.4,2.33783024]
[1757084692220,1.5584,4277.8,4277.3,4.384]
[1757084692382,1.5584,4277.7,4276.8,0.025]
[1757084692581,2.33776156,4277.6,4276.8,0.025]
[1757084692783,2.33779704,4277.6,4276.8,0.025]
[1757084693009,1.5584,4277.5,4276.8,0.025]
[1757084693682,2.33790742,4277.4,4276.8,0.025]
[1757084693882,1.5584,4277.5,4276.8,0.025]
[1757084694607,0.4742,4277.5,4276.8,0.025]
[1757084695110,1.0842,4277.7,4277.1,0.1168]
[1757084695317,1.0842,4277.7,4277.1,2.45479885]
[1757084695614,1.0842,4277.7,4277.3,2.33791627]
[1757084695818,0.4742,4277.6,4277.1,0.1168]
[1757084696026,0.1168,4277.8,4277.1,2.45478102]
[1757084696314,0.1168,4277.8,4277.1,0.02338032]
[1757084696491,0.1168,4278.1,4277.4,0.1168]
[1757084696691,0.4742,4278.2,4277.5,2.33778252]
[1757084696892,0.1168,4278.4,4277.7,0.1168]
[1757084697115,0.4742,4278.6,4277.6,4.383]
[1757084697315,0.4742,4278.6,4277.7,4.383]
[1757084697516,0.4742,4278.6,4277.2,1.723]
[1757084697705,0.4742,4278.6,4277.4,3.0]
[1757084697908,0.4742,4278.6,4277.7,5.33766197]
[1757084698215,0.4742,4278.6,4277.9,2.33756513]
[1757084698422,0.4742,4278.6,4277.8,4.383]
[1757084698626,0.4742,4278.6,4277.7,3.0]
[1757084699120,0.4742,4278.6,4277.8,4.383]
[1757084699290,0.02520001,4278.8,4277.3,3.0]
[1757084699492,3.89569919,4278.5,4277.6,4.383]
[1757084699730,3.89569919,4278.5,4277.5,4.383]
[1757084700022,0.02520001,4278.8,4277.3,3.0]
[1757084700223,1.5584,4278.4,4277.2,4.723]
[1757084700531,1.5584,4278.4,4277.2,2.6336]
[1757084700686,1.5584,4278.3,4276.8,0.025]
[1757084700881,2.33743163,4278.2,4276.8,0.025]
[1757084701119,1.5584,4278.3,4277.4,2.3378677]
[1757084701449,1.5584,4278.2,4276.8,0.025]
[1757084701590,1.5584,4278.2,4276.8,0.04838196]
[1757084701785,1.71424,4278.2,4276.8,0.025]
[1757084702005,2.33775375,4277.7,4276.8,0.025]
[1757084702219,2.33748626,4278.1,4276.8,0.025]
[1757084702398,1.5584,4277.6,4276.8,0.025]
[1757084702596,5.9414,4277.6,4276.8,0.025]
[1757084702804,0.792,4277.4,4276.2,0.004]
[1757084703020,0.792,4277.0,4275.8,0.029]
[1757084703239,0.792,4276.8,4275.8,0.029]
[1757084703394,2.33862752,4276.1,4275.8,0.029]
[1757084703711,1.5584,4276.9,4275.8,0.029]
[1757084703712,1.0842,4276.7,4276.0,2.33862449]
[1757084703912,0.4742,4277.2,4275.8,0.029]
[1757084704091,1.0842,4277.1,4275.8,0.029]
[1757084704292,2.33842589,4276.4,4275.8,0.029]
[1757084704492,2.33826009,4276.7,4275.8,0.029]
[1757084704706,3.30114293,4277.8,4275.8,0.029]
[1757084704707,0.4742,4277.2,4275.8,0.029]
[1757084704907,0.4742,4277.2,4275.8,2.36772399]
[1757084705114,1.5584,4277.1,4275.8,0.029]
[1757084705317,0.792,4277.0,4275.8,0.029]
[1757084705503,2.33814211,4276.9,4275.8,0.029]
[1757084705705,1.5584,4276.9,4275.8,0.029]
[1757084706136,1.5584,4276.9,4276.1,2.33857151]
[1757084706338,1.5584,4276.9,4275.8,2.36769955]
[1757084706543,1.5584,4276.9,4275.9,2.3386669]
[1757084706746,2.33825145,4276.7,4275.8,0.029]
[1757084707053,0.1168,4276.4,4275.8,0.029]
[1757084707220,2.81267481,4276.3,4275.8,0.029]
[1757084707407,2.33857954,4276.1,4275.8,0.029]
[1757084707606,1.5584,4276.2,4275.8,0.029]
[1757084707810,1.5584,4276.0,4275.8,0.029]
[1757084708226,3.89708893,4275.9,4275.8,0.029]
[1757084709540,4.68908893,4275.9,4275.8,0.029]
[1757084709729,9.41208893,4275.9,4275.8,0.029]
[1757084710248,5.62008893,4275.9,4275.8,0.029]
[1757084710418,3.2814,4275.9,4275.8,0.029]
[1757084710621,0.4386,4276.5,4275.8,0.029]
[1757084710826,2.33849152,4276.3,4275.8,0.029]
[1757084711024,0.4386,4276.5,4275.8,0.029]
[1757084711221,0.4386,4276.3,4275.8,0.029]
[1757084711748,1.5322,4276.2,4275.8,0.029]
[1757084711930,2.8166,4276.9,4275.8,0.029]
[1757084712132,0.4386,4276.1,4275.8,0.029]